bitfinex/quotes_SOLUSD_20230702
["timestamp","ask_amount","ask_price","bid_price","bid_amount"]
[1688312519479,21.95,19.271,19.264,21.958]
[1688312519679,76.949,19.272,19.264,21.958]
[1688312520174,21.949,19.272,19.264,21.958]
[1688312521862,55.0,19.271,19.264,21.958]
[1688312522058,21.952,19.269,19.264,21.958]
[1688312522275,21.951,19.27,19.264,21.958]
[1688312522871,21.951,19.27,19.262,22.0517044]
[1688312524966,55.0,19.269,19.262,22.0517044]
[1688312525165,21.954,19.267,19.262,22.0517044]
[1688312526565,21.954,19.267,19.25,56.57]
[1688312526774,125.80748874,19.266,19.251,21.972]
[1688312527078,21.96,19.262,19.251,21.972]
[1688312527265,21.964,19.258,19.251,21.972]
[1688312529487,55.0,19.257,19.251,21.972]
[1688312529675,21.968,19.256,19.249,21.974]
[1688312529982,21.968,19.256,19.25,21.973]
[1688312530190,70.80748874,19.266,19.25,21.973]
[1688312530376,20.0,19.266,19.25,21.973]
[1688312530573,21.957,19.265,19.25,21.973]
[1688312530769,20.0,19.264,19.25,21.973]
[1688312531086,21.962,19.26,19.25,21.973]
[1688312531971,55.0,19.259,19.25,21.973]
[1688312532171,21.965,19.258,19.25,21.973]
[1688312533679,21.961,19.262,19.25,21.973]
[1688312533984,3.0,19.288,19.251,55.0]
[1688312534284,21.951,19.27,19.259,21.962]
[1688312534769,21.951,19.27,19.258,21.964]
[1688312535081,123.56597774,19.27,19.257,21.965]
[1688312535277,50.80748874,19.269,19.252,56.563]
[1688312535487,21.957,19.265,19.257,21.965]
[1688312536075,21.96,19.262,19.257,21.965]
[1688312536269,50.807489,19.27,19.257,21.965]
[1688312536470,56.502,19.274,19.257,78.515]
[1688312536863,20.0,19.273,19.257,78.515]
[1688312537670,21.952,19.269,19.257,78.515]
[1688312537873,21.952,19.269,19.257,21.965]
[1688312538192,72.75948874,19.269,19.257,21.965]
[1688312538573,50.80748874,19.268,19.257,21.965]
[1688312538886,21.955,19.266,19.257,21.965]
[1688312539586,55.0,19.265,19.244,103.247]
[1688312539792,21.964,19.259,19.245,56.585]
[1688312540082,21.968,19.255,19.25,21.974]
[1688312540283,21.968,19.255,19.23,11.24]
[1688312540284,21.968,19.255,19.238,103.283]
[1688312540467,21.968,19.255,19.23,11.24]
[1688312540468,76.969,19.254,19.245,56.583]
[1688312541077,76.969,19.254,19.23,11.24]
[1688312541078,76.969,19.254,19.244,21.979]
[1688312541591,76.969,19.254,19.238,56.605]
[1688312541767,21.975,19.249,19.243,21.981]
[1688312542086,21.968,19.255,19.243,21.981]
[1688312542591,21.966,19.257,19.243,21.981]
[1688312542782,56.545,19.259,19.243,21.981]
[1688312543470,153.96948874,19.261,19.243,21.981]
[1688312543679,21.967,19.256,19.243,21.981]
[1688312544193,21.968,19.255,19.243,21.981]
[1688312544482,21.967,19.256,19.243,21.981]
[1688312544685,107.40148874,19.26,19.243,21.981]
[1688312544871,21.966,19.258,19.243,21.981]
[1688312545975,55.0,19.257,19.243,21.981]
[1688312546288,21.97,19.253,19.243,21.981]
[1688312546475,55.0,19.252,19.243,21.981]
[1688312546683,21.969,19.254,19.243,21.981]
[1688312547274,21.968,19.255,19.243,21.981]
[1688312547481,55.0,19.254,19.243,21.981]
[1688312548086,21.965,19.258,19.243,21.981]
[1688312548283,21.965,19.258,19.244,55.0]
[1688312548480,72.77048874,19.26,19.248,181.782]
[1688312548984,21.96,19.263,19.248,181.782]
[1688312549183,20.0,19.262,19.248,181.782]
[1688312549494,41.961,19.262,19.248,181.782]
[1688312551989,21.962,19.26,19.248,181.782]
[1688312552695,56.52,19.268,19.248,181.782]
[1688312552992,56.51,19.271,19.256,181.705]
[1688312553191,21.954,19.267,19.256,181.705]
[1688312553397,21.954,19.267,19.256,78.518]
[1688312554372,21.953,19.268,19.256,78.518]
[1688312554790,56.52,19.273,19.256,78.518]
[1688312555091,21.952,19.269,19.26,78.501]
[1688312555283,21.952,19.269,19.26,21.961]
[1688312556783,55.0,19.268,19.26,21.961]
[1688312556983,21.955,19.267,19.26,21.961]
[1688312557788,55.0,19.266,19.26,21.961]
[1688312557974,21.957,19.265,19.26,21.961]
[1688312558181,21.957,19.265,19.256,56.551]
[1688312558182,55.0,19.264,19.247,56.579]
[1688312558381,21.963,19.259,19.247,56.579]
[1688312558581,55.0,19.258,19.249,21.974]
[1688312558881,21.967,19.256,19.249,21.974]
[1688312559095,55.0,19.255,19.249,21.974]
[1688312559287,21.97,19.254,19.249,21.974]
[1688312559491,55.0,19.253,19.247,21.976]
[1688312559695,21.972,19.252,19.247,21.976]
[1688312559915,21.966,19.257,19.247,21.976]
[1688312560197,56.539,19.261,19.247,21.976]
[1688312560407,55.0,19.26,19.247,21.976]
[1688312560902,21.967,19.256,19.247,21.976]
[1688312561201,55.0,19.255,19.247,21.976]
[1688312561497,21.971,19.253,19.247,21.976]
[1688312561797,76.972,19.252,19.247,21.976]
[1688312561995,21.972,19.252,19.247,21.976]
[1688312563999,21.974,19.25,19.246,21.978]
[1688312564200,55.0,19.249,19.241,21.983]
[1688312564411,21.977,19.247,19.234,56.616]
[1688312564697,21.982,19.243,19.237,21.988]
[1688312566583,21.982,19.243,19.235,21.99]
[1688312566881,21.985,19.24,19.236,21.989]
[1688312567084,76.986,19.239,19.234,21.991]
[1688312567281,146.7928,19.248,19.234,21.991]
[1688312567487,21.981,19.244,19.234,21.991]
[1688312567684,55.0,19.243,19.234,21.991]
[1688312567901,21.98,19.245,19.234,21.991]
[1688312568078,55.0,19.244,19.234,21.991]
[1688312568284,76.981,19.244,19.234,21.991]
[1688312568604,55.0,19.244,19.234,21.991]
[1688312569200,76.981,19.244,19.234,21.991]
[1688312569392,20.0,19.243,19.234,21.991]
[1688312569593,21.985,19.241,19.234,21.991]
[1688312569791,55.0,19.24,19.234,21.991]
[1688312570301,21.984,19.241,19.234,21.991]
[1688312570793,21.983,19.243,19.234,21.991]
[1688312571000,20.0,19.242,19.234,21.991]
[1688312571592,20.0,19.245,19.234,21.991]
[1688312571786,21.981,19.244,19.234,21.991]
[1688312572000,20.0,19.243,19.234,21.991]
[1688312572197,55.0,19.249,19.219,97.8243]
[1688312572421,21.979,19.246,19.234,21.991]
[1688312573503,55.0,19.245,19.234,21.991]
[1688312573702,21.983,19.242,19.234,21.991]
[1688312575204,55.0,19.245,19.234,21.991]
[1688312575787,21.977,19.248,19.234,21.991]
[1688312575994,21.972,19.252,19.235,55.0]
[1688312576197,93.8884,19.255,19.241,181.85]
[1688312576402,21.971,19.252,19.241,78.581]
[1688312576700,21.971,19.252,19.24,21.985]
[1688312576900,21.971,19.252,19.231,56.625]
[1688312577210,181.81,19.246,19.234,21.991]
[1688312577416,78.578,19.242,19.234,21.991]
[1688312577591,21.986,19.239,19.234,21.991]
[1688312578907,21.986,19.239,19.228,56.633]
[1688312579303,21.986,19.239,19.231,21.995]
[1688312579816,21.979,19.246,19.231,125.317]
[1688312580114,21.979,19.246,19.232,75.0]
[1688312580405,21.979,19.246,19.236,78.601]
[1688312580912,21.979,19.246,19.236,21.989]
[1688312581101,55.0,19.245,19.236,21.989]
[1688312581312,21.982,19.243,19.235,21.991]
[1688312581502,75.0,19.242,19.234,21.991]
[1688312581706,21.985,19.24,19.234,21.991]
[1688312581906,55.0,19.239,19.234,21.991]
[1688312582106,21.987,19.238,19.234,21.991]
[1688312582804,20.0,19.242,19.234,21.991]
[1688312583007,20.0,19.243,19.234,21.991]
[1688312583212,20.0,19.245,19.234,21.991]
[1688312584112,21.984,19.241,19.234,21.991]
[1688312585419,21.979,19.245,19.234,125.297]
[1688312585602,21.978,19.247,19.234,125.297]
[1688312585800,56.571,19.25,19.234,125.297]
[1688312586203,56.62,19.251,19.234,125.297]
[1688312586412,21.974,19.25,19.239,78.586]
[1688312587620,21.974,19.25,19.239,21.985]
[1688312587800,21.978,19.246,19.239,21.985]
[1688312587997,21.98,19.244,19.239,21.985]
[1688312588423,76.979,19.245,19.239,21.985]
[1688312588623,99.5644,19.252,19.239,21.985]
[1688312588922,76.973,19.251,19.239,21.985]
[1688312589115,55.0,19.251,19.239,21.985]
[1688312589315,56.605,19.254,19.239,21.985]
[1688312589508,21.971,19.252,19.239,21.985]
[1688312590525,21.968,19.255,19.239,21.985]
[1688312590710,20.0,19.254,19.24,22.41]
[1688312590912,41.969,19.254,19.244,78.568]
[1688312591615,41.969,19.254,19.238,21.987]
[1688312591820,41.969,19.254,19.234,56.616]
[1688312591821,41.969,19.254,19.237,21.988]
[1688312592328,22.52,19.25,19.231,56.625]
[1688312592508,22.52,19.25,19.235,21.991]
[1688312592509,78.568,19.245,19.235,21.991]
[1688312592711,20.0,19.244,19.235,21.991]
[1688312592920,21.983,19.242,19.23,21.995]
[1688312593122,21.983,19.242,19.227,103.343]
[1688312593426,41.981,19.244,19.234,78.61]
[1688312593806,146.9333,19.249,19.234,78.61]
[1688312594214,103.176,19.259,19.234,78.61]
[1688312594526,21.973,19.251,19.239,181.861]
[1688312594732,21.973,19.251,19.239,21.985]
[1688312595615,55.0,19.25,19.239,21.985]
[1688312595816,21.977,19.247,19.239,21.985]
[1688312596011,55.0,19.246,19.239,21.985]
[1688312596231,56.561,19.254,19.239,21.985]
[1688312596411,20.0,19.253,19.239,21.985]
[1688312597128,21.973,19.251,19.239,21.985]
[1688312597712,78.541,19.251,19.239,21.985]
[1688312597924,55.0,19.25,19.239,21.985]
[1688312598228,21.977,19.247,19.232,159.936]
[1688312598423,21.977,19.247,19.237,21.988]
[1688312598613,21.982,19.243,19.235,21.99]
[1688312599020,21.985,19.241,19.235,21.99]
[1688312599237,76.985,19.24,19.234,21.992]
[1688312599528,103.226,19.249,19.235,21.99]
[1688312599714,21.983,19.242,19.235,21.99]
[1688312599915,55.0,19.241,19.235,21.99]
[1688312600312,21.984,19.241,19.235,21.99]
[1688312600524,55.0,19.24,19.235,21.99]
[1688312600720,55.0,19.24,19.22,11.32]
[1688312600919,21.983,19.243,19.231,21.995]
[1688312601123,21.978,19.246,19.236,78.601]
[1688312601318,21.977,19.247,19.236,78.601]
[1688312602314,21.982,19.243,19.236,21.989]
[1688312602525,21.982,19.243,19.23,56.629]
[1688312602726,21.984,19.241,19.233,21.992]
[1688312603112,56.587,19.245,19.233,21.992]
[1688312603338,21.983,19.243,19.233,125.304]
[1688312603510,41.983,19.242,19.233,125.304]
[1688312603821,21.983,19.242,19.233,125.304]
[1688312604022,21.982,19.243,19.233,125.304]
[1688312604327,20.0,19.242,19.233,21.992]
[1688312604531,76.985,19.241,19.233,21.992]
[1688312605438,76.985,19.241,19.222,20.0]
[1688312605439,76.985,19.241,19.226,56.639]
[1688312605728,76.985,19.241,19.227,21.999]
[1688312606118,133.624,19.241,19.227,21.999]
[1688312606515,76.985,19.241,19.227,21.999]
[1688312607534,31.25,19.24,19.218,22.009]
[1688312607745,181.921,19.234,19.218,22.01]
[1688312608054,75.0,19.233,19.218,22.01]
[1688312608334,75.0,19.233,19.2,11.15]
[1688312608335,21.998,19.229,19.2,11.15]
[1688312608532,22.006,19.222,19.2,11.15]
[1688312608831,22.006,19.222,19.209,22.02]
[1688312609035,55.0,19.221,19.209,22.019]
[1688312609236,22.011,19.218,19.209,22.019]
[1688312609818,22.011,19.218,19.183,399.8]
[1688312609819,75.0,19.217,19.193,103.523]
[1688312610037,202.311,19.217,19.2,78.748]
[1688312610223,22.017,19.213,19.2,78.748]
[1688312610537,75.0,19.212,19.2,78.748]
[1688312610731,22.02,19.21,19.2,78.748]
[1688312611029,22.02,19.21,19.2,22.03]
[1688312611736,20.0,19.212,19.2,125.519]
[1688312612113,76.673,19.216,19.2,125.519]
[1688312612461,76.673,19.216,19.2,22.03]
[1688312612462,22.019,19.211,19.2,22.03]
[1688312612814,55.0,19.21,19.198,22.033]
[1688312613018,22.023,19.207,19.199,22.032]
[1688312613233,55.0,19.206,19.199,22.032]
[1688312613535,22.026,19.204,19.199,22.032]
[1688312613737,55.0,19.203,19.199,22.032]
[1688312613917,77.028,19.203,19.199,22.032]
[1688312614120,77.028,19.203,19.188,103.55]
[1688312614422,11.17,19.2,19.181,56.773]
[1688312614628,78.772,19.195,19.181,22.052]
[1688312615132,75.0,19.194,19.181,22.052]
[1688312615432,22.042,19.191,19.181,22.052]
[1688312615634,55.0,19.19,19.181,22.052]
[1688312615836,77.043,19.19,19.181,78.826]
[1688312616130,22.042,19.19,19.181,22.052]
[1688312616335,77.044,19.189,19.181,22.052]
[1688312616528,55.0,19.189,19.181,22.052]
[1688312616836,11.17,19.2,19.181,22.052]
[1688312617038,20.0,19.199,19.181,22.052]
[1688312617733,22.035,19.197,19.181,22.052]
[1688312617931,103.596,19.199,19.181,22.052]
[1688312618123,22.034,19.197,19.187,78.802]
[1688312618837,22.034,19.197,19.187,22.046]
[1688312619132,22.038,19.194,19.187,22.046]
[1688312619329,42.04,19.193,19.187,22.046]
[1688312619543,22.042,19.191,19.177,56.784]
[1688312619720,22.044,19.189,19.182,22.051]
[1688312619922,22.044,19.189,19.177,56.784]
[1688312620130,55.0,19.188,19.18,22.053]
[1688312620332,55.0,19.192,19.18,22.053]
[1688312620831,76.784,19.193,19.18,22.053]
[1688312621027,20.0,19.193,19.18,22.053]
[1688312621532,56.714,19.202,19.181,20.0]
[1688312621734,103.476,19.203,19.18,33.313]
[1688312621735,22.035,19.196,19.187,22.045]
[1688312622040,78.756,19.2,19.184,103.573]
[1688312622041,22.04,19.192,19.184,22.048]
[1688312622242,22.04,19.192,19.183,22.049]
[1688312622456,22.04,19.192,19.182,22.05]
[1688312622651,22.04,19.192,19.183,22.05]
[1688312623025,22.044,19.189,19.183,22.05]
[1688312623226,78.756,19.2,19.183,22.05]
[1688312623439,11.16,19.21,19.184,55.0]
[1688312623643,111.0981,19.207,19.191,78.785]
[1688312623841,103.484,19.206,19.191,78.785]
[1688312624049,22.027,19.204,19.191,78.785]
[1688312624223,103.43,19.212,19.191,78.785]
[1688312624224,22.012,19.217,19.192,75.0]
[1688312624425,22.01,19.218,19.2,11.26]
[1688312624729,56.658,19.223,19.205,182.187]
[1688312624929,22.009,19.219,19.205,182.187]
[1688312625131,22.009,19.219,19.205,78.727]
[1688312625545,22.008,19.22,19.206,55.0]
[1688312625739,22.004,19.223,19.21,78.707]
[1688312626039,20.0,19.222,19.21,78.707]
[1688312626245,42.006,19.222,19.21,78.707]
[1688312626442,20.0,19.222,19.21,78.707]
[1688312626749,42.006,19.222,19.21,78.707]
[1688312627243,22.006,19.222,19.21,78.707]
[1688312628146,56.634,19.229,19.211,55.0]
[1688312628345,56.634,19.229,19.216,22.012]
[1688312628644,21.999,19.229,19.216,22.012]
[1688312630356,21.999,19.229,19.192,3.0]
[1688312630357,20.0,19.228,19.192,3.0]
[1688312630651,78.66,19.222,19.213,22.015]
[1688312630947,22.006,19.222,19.213,22.015]
[1688312631451,22.004,19.224,19.213,22.015]
[1688312631656,22.001,19.227,19.213,21.515]
[1688312631944,103.314,19.233,19.213,21.515]
[1688312632149,22.003,19.225,19.213,21.515]
[1688312632458,20.0,19.224,19.213,21.515]
[1688312632743,22.007,19.221,19.213,21.515]
[1688312632948,56.653,19.223,19.213,21.515]
[1688312632949,22.01,19.218,19.213,21.515]
[1688312633248,22.0,19.228,19.213,21.515]
[1688312633547,21.999,19.228,19.213,21.515]
[1688312633745,21.996,19.231,19.213,21.515]
[1688312633953,21.996,19.231,19.214,55.0]
[1688312634142,21.996,19.231,19.219,22.009]
[1688312634839,21.996,19.231,19.217,22.01]
[1688312635050,55.0,19.23,19.217,22.01]
[1688312635235,22.001,19.227,19.217,22.01]
[1688312635555,55.0,19.226,19.217,22.01]
[1688312635743,77.001,19.226,19.217,22.01]
[1688312636928,236.992,19.226,19.208,103.442]
[1688312637134,78.663,19.222,19.212,22.017]
[1688312637456,22.01,19.219,19.207,56.695]
[1688312637632,22.01,19.219,19.205,22.025]
[1688312637633,55.0,19.218,19.205,22.025]
[1688312637835,78.692,19.215,19.204,22.026]
[1688312638042,55.0,19.214,19.202,22.027]
[1688312638239,78.707,19.211,19.199,22.032]
[1688312638436,55.0,19.21,19.199,22.032]
[1688312638644,22.023,19.207,19.199,22.032]
[1688312638845,55.0,19.206,19.199,22.032]
[1688312639045,22.023,19.207,19.199,22.032]
[1688312639046,22.022,19.208,19.199,22.032]
[1688312639637,103.409,19.215,19.199,22.032]
[1688312639946,22.021,19.209,19.199,22.032]
[1688312640455,55.0,19.208,19.199,22.032]
[1688312640646,22.024,19.206,19.199,22.032]
[1688312640838,55.0,19.205,19.199,22.032]
[1688312641035,77.025,19.205,19.174,90.7107]
[1688312641345,77.025,19.205,19.189,78.792]
[1688312641346,22.031,19.2,19.189,78.792]
[1688312641654,55.0,19.199,19.189,78.792]
[1688312641954,22.035,19.196,19.189,22.043]
[1688312642452,55.0,19.199,19.189,22.043]
[1688312642632,22.034,19.198,19.189,22.043]
[1688312643343,22.031,19.2,19.189,125.591]
[1688312644045,55.0,19.199,19.189,125.591]
[1688312644248,22.033,19.199,19.189,125.591]
[1688312644542,55.0,19.198,19.189,22.043]
[1688312644741,22.036,19.196,19.189,22.043]
[1688312645448,22.036,19.196,19.174,90.7107]
[1688312645650,55.0,19.195,19.18,56.776]
[1688312645949,22.042,19.191,19.181,22.053]
[1688312647450,22.045,19.188,19.181,22.053]
[1688312647650,20.0,19.194,19.181,22.053]
[1688312647838,155.7,19.211,19.181,22.053]
[1688312647839,55.0,19.193,19.181,22.053]
[1688312648043,42.04,19.192,19.181,22.053]
[1688312648250,20.0,19.192,19.181,22.053]
[1688312648441,20.0,19.195,19.181,22.053]
[1688312648644,22.037,19.195,19.181,22.053]
[1688312648860,196.4584,19.206,19.182,75.0]
[1688312649151,22.033,19.199,19.189,78.793]
[1688312649342,22.033,19.199,19.189,22.043]
[1688312649941,78.749,19.199,19.189,22.043]
[1688312650262,78.749,19.199,19.188,22.045]
[1688312650437,56.716,19.199,19.188,22.045]
[1688312650636,56.716,19.199,19.182,20.0]
[1688312650637,22.023,19.207,19.199,22.032]
[1688312652153,22.019,19.211,19.199,22.032]
[1688312652461,22.012,19.217,19.2,86.26]
[1688312652772,22.012,19.217,19.206,22.024]
[1688312653062,22.012,19.217,19.199,56.719]
[1688312653238,22.012,19.217,19.203,22.026]
[1688312653964,20.0,19.216,19.203,22.026]
[1688312654141,22.015,19.215,19.203,22.026]
[1688312654457,22.018,19.212,19.203,22.026]
[1688312655039,20.0,19.214,19.203,22.026]
[1688312655258,20.0,19.215,19.203,22.026]
[1688312655463,78.696,19.213,19.203,22.026]
[1688312655636,20.0,19.212,19.203,22.026]
[1688312655842,22.02,19.21,19.203,22.026]
[1688312658543,55.0,19.209,19.201,22.029]
[1688312658854,22.023,19.207,19.201,22.029]
[1688312661964,22.021,19.209,19.201,22.029]
[1688312662856,22.015,19.214,19.201,125.513]
[1688312663067,22.015,19.215,19.209,22.02]
[1688312663262,56.662,19.22,19.209,22.02]
[1688312663644,22.013,19.216,19.209,22.02]
[1688312664442,22.01,19.218,19.209,22.02]
[1688312664660,56.65,19.224,19.209,22.02]
[1688312664979,20.0,19.223,19.209,22.02]
[1688312665463,20.0,19.224,19.209,22.02]
[1688312665769,20.0,19.225,19.209,22.02]
[1688312666155,22.006,19.222,19.209,22.02]
[1688312667371,22.006,19.222,19.21,55.0]
[1688312667560,22.006,19.222,19.213,78.693]
[1688312667950,20.0,19.225,19.213,78.693]
[1688312668271,22.004,19.224,19.213,78.693]
[1688312668570,20.0,19.223,19.213,78.693]
[1688312668870,22.008,19.22,19.213,78.693]
[1688312669072,20.0,19.223,19.213,78.693]
[1688312669254,20.0,19.225,19.213,78.693]
[1688312670147,22.004,19.223,19.213,78.693]
[1688312670346,20.0,19.222,19.213,78.693]
[1688312670653,42.006,19.222,19.213,78.693]
[1688312670966,20.0,19.222,19.213,78.693]
[1688312671269,42.005,19.223,19.216,22.012]
[1688312673158,145.37,19.223,19.209,56.69]
[1688312673367,55.0,19.222,19.209,56.69]
[1688312673566,22.01,19.219,19.212,22.017]
[1688312674668,22.01,19.219,19.212,78.7]
[1688312674857,22.01,19.219,19.212,22.017]
[1688312677056,55.0,19.218,19.212,22.017]
[1688312677252,22.012,19.217,19.212,22.017]
[1688312678559,75.0,19.216,19.203,22.026]
[1688312678767,182.121,19.213,19.197,56.725]
[1688312678966,75.0,19.212,19.197,56.725]
[1688312679269,22.022,19.208,19.199,22.031]
[1688312679470,55.0,19.207,19.199,22.031]
[1688312679674,22.025,19.205,19.199,22.031]
[1688312679875,22.025,19.205,19.198,22.033]
[1688312680058,55.0,19.204,19.198,22.033]
[1688312680256,22.028,19.203,19.198,22.033]
[1688312680571,75.0,19.202,19.17,11.26]
[1688312680779,22.039,19.193,19.179,125.656]
[1688312680955,20.0,19.192,19.179,125.656]
[1688312681161,20.0,19.197,19.179,125.656]
[1688312681457,22.037,19.195,19.179,125.656]
[1688312681660,22.039,19.193,19.179,125.656]
[1688312681870,20.0,19.192,19.179,125.656]
[1688312682457,20.0,19.195,19.179,125.656]
[1688312682658,90.9888,19.204,19.18,11.26]
[1688312682874,147.6968,19.204,19.181,20.0]
[1688312683059,22.032,19.199,19.187,182.353]
[1688312684677,22.028,19.203,19.188,55.0]
[1688312684882,20.0,19.202,19.192,182.309]
[1688312685479,20.0,19.202,19.193,55.0]
[1688312685676,20.0,19.203,19.195,78.767]
[1688312685978,42.028,19.203,19.195,78.767]
[1688312686373,42.028,19.203,19.195,22.036]
[1688312687366,22.027,19.206,19.195,22.036]
[1688312687576,22.02,19.21,19.196,55.0]
[1688312687775,22.015,19.214,19.2,78.749]
[1688312688080,22.019,19.211,19.2,78.749]
[1688312688294,22.018,19.212,19.2,78.749]
[1688312690279,22.02,19.21,19.2,78.749]
[1688312691781,22.018,19.211,19.2,78.749]
[1688312692867,22.017,19.212,19.2,78.749]
[1688312693468,55.0,19.211,19.2,78.749]
[1688312693670,56.667,19.216,19.2,78.749]
[1688312693871,75.0,19.215,19.2,78.749]
[1688312694571,97.015,19.215,19.2,78.749]
[1688312694886,20.0,19.215,19.2,90.009]
[1688312695091,20.0,19.215,19.205,182.189]
[1688312695388,20.0,19.216,19.205,182.189]
[1688312695774,42.012,19.216,19.205,182.189]
[1688312696074,22.012,19.217,19.205,182.189]
[1688312696386,22.01,19.218,19.205,182.189]
[1688312696584,22.01,19.218,19.206,55.0]
[1688312696787,22.01,19.218,19.209,78.71]
[1688312697286,155.92372249,19.226,19.209,78.71]
[1688312697287,22.009,19.22,19.209,78.71]
[1688312698271,22.007,19.221,19.209,78.71]
[1688312698477,98.4549,19.226,19.209,78.71]
[1688312698690,22.007,19.221,19.209,78.71]
[1688312699895,98.4549,19.226,19.209,78.71]
[1688312700187,75.0,19.225,19.209,78.71]
[1688312700377,22.007,19.222,19.209,78.71]
[1688312700577,55.0,19.221,19.209,78.71]
[1688312700790,22.009,19.219,19.209,78.71]
[1688312701180,56.648,19.224,19.209,78.71]
[1688312701495,75.0,19.223,19.209,78.71]
[1688312702174,22.007,19.221,19.209,78.71]
[1688312702988,55.0,19.22,19.209,78.71]
[1688312703188,77.009,19.22,19.209,78.71]
[1688312703377,22.009,19.22,19.209,78.71]
[1688312703573,22.006,19.222,19.209,78.71]
[1688312704579,55.0,19.221,19.209,78.71]
[1688312704782,22.008,19.22,19.209,78.71]
[1688312705480,22.007,19.221,19.209,78.71]
[1688312705783,22.59,19.23,19.209,78.71]
[1688312705974,154.452,19.231,19.215,78.686]
[1688312706176,56.628,19.231,19.215,78.686]
[1688312706376,21.998,19.229,19.219,22.008]
[1688312707193,56.63,19.23,19.22,22.007]
[1688312707194,22.39,19.23,19.22,22.007]
[1688312707486,97.824,19.237,19.22,125.388]
[1688312707991,41.99,19.236,19.22,125.388]
[1688312708294,98.602,19.236,19.22,125.388]
[1688312708596,21.99,19.236,19.22,125.388]
[1688312708785,20.0,19.235,19.22,125.388]
[1688312709100,21.994,19.233,19.211,56.685]
[1688312709393,22.003,19.225,19.216,22.012]